[Event "23rd ETCC Women 2021"]
[Site "Catez"]
[Date "2021.11.21"]
[Round "9.59"]
[White "Vanduyfhuys, Daria"]
[Black "Machlik, Edit"]
[Result "0-1"]
[ECO "E16"]
[WhiteElo "1933"]
[BlackElo "2087"]
[Annotator "NA"]
[PlyCount "112"]
[EventDate "2021.11.08"]
[EventType "team-tourn"]
[EventCountry "SLO"]
[SourceTitle "playchess.com"]
[Source "ChessBase"]
[SourceQuality "1"]
[WhiteTeam "Belgium"]
[BlackTeam "Norway"]
[WhiteTeamCountry "BEL"]
[BlackTeamCountry "NOR"]
[TimeControl "40/5400+30:1800+30"]

1. d4 {[%emt 0:00:02]} Nf6 {[%emt 0:00:06]} 2. c4 {[%emt 0:00:07]} e6 {[%emt 0:
00:05]} 3. Nf3 {[%emt 0:00:07]} Bb4+ {[%emt 0:00:04]} 4. Bd2 {[%emt 0:00:05]}
a5 {[%emt 0:00:08]} 5. g3 {[%emt 0:00:47]} b6 {[%emt 0:01:20]} 6. Bg2 {[%emt 0:
00:33]} Bb7 {[%emt 0:00:07]} 7. O-O {[%emt 0:00:29]} O-O {[%emt 0:01:01]} 8.
Nc3 {[%emt 0:01:53]} d6 {[%emt 0:02:10]} 9. Qc2 {[%emt 0:04:46]} Nbd7 {[%emt 0:
01:13]} 10. Rfd1 {[%emt 0:03:36]} Bxc3 {[%emt 0:04:14]} 11. Bxc3 {[%emt 0:00:
10]} Be4 {[%emt 0:00:13]} 12. Qd2 {[%emt 0:05:19]} Qb8 {[%emt 0:03:04]} 13. Bh3
{[%emt 0:06:46]} b5 {[%emt 0:13:20]} 14. d5 {[%emt 0:18:27]} e5 {[%emt 0:14:58]
} 15. Qe3 {[%emt 0:14:07]} Nb6 {[%emt 0:09:04]} 16. Nd2 {[%emt 0:10:18]} Bg6 {
[%emt 0:15:41]} 17. b3 {[%emt 0:01:17]} Nbxd5 {[%emt 0:03:32]} 18. cxd5 {
[%emt 0:01:16]} Nxd5 {[%emt 0:00:13]} 19. Qg5 {[%emt 0:17:17]} Nxc3 {[%emt 0:
00:56]} 20. Re1 {[%emt 0:00:04]} h6 {[%emt 0:07:46]} 21. Qg4 {[%emt 0:01:28]}
d5 {[%emt 0:01:46]} 22. Bg2 {[%emt 0:06:05]} c6 {[%emt 0:01:18]} 23. f4 {
[%emt 0:03:53]} exf4 {[%emt 0:04:46]} 24. gxf4 {[%emt 0:00:08]} Qc8 {[%emt 0:
01:00]} 25. Qg3 {[%emt 0:00:14]} b4 {[%emt 0:02:26]} 26. e4 {[%emt 0:01:15]}
dxe4 {[%emt 0:02:03]} 27. Nxe4 {[%emt 0:00:03]} Nxe4 {[%emt 0:00:46]} 28. Bxe4
{[%emt 0:00:04]} Bxe4 {[%emt 0:00:09]} 29. Rxe4 {[%emt 0:00:03]} Re8 {[%emt 0:
00:47]} 30. Rc4 {[%emt 0:01:13]} Qd7 {[%emt 0:05:05]} 31. Qg2 {[%emt 0:01:32]}
Rac8 {[%emt 0:00:13]} 32. Rac1 {[%emt 0:00:05]} c5 {[%emt 0:02:32]} 33. Qf2 {
[%emt 0:01:13]} Qg4+ {[%emt 0:00:35]} 34. Qg3 {[%emt 0:00:02]} Qf5 {[%emt 0:00:
35]} 35. Qf2 {[%emt 0:00:36]} Qg4+ {[%emt 0:03:17]} 36. Qg3 {[%emt 0:00:04]}
Qxg3+ {[%emt 0:00:47]} 37. hxg3 {[%emt 0:00:04]} Re2 {[%emt 0:00:10]} 38. R1c2
{[%emt 0:00:41]} Rxc2 {[%emt 0:00:15]} 39. Rxc2 {[%emt 0:00:03]} Kf8 {[%emt 0:
00:39]} 40. Kf2 {[%emt 0:00:37]} Ke7 {[%emt 0:00:55]} 41. Ke3 {[%emt 0:32:01]}
Kd6 {[%emt 0:02:59]} 42. Kd3 {[%emt 0:00:00]} Re8 {[%emt 0:01:36]} 43. Rc1 {
[%emt 0:00:00]} Kd5 {[%emt 0:03:08]} 44. Rh1 {[%emt 0:00:00]} Kc6 {[%emt 0:05:
04]} 45. Kd2 {[%emt 0:00:00]} a4 {[%emt 0:02:33]} 46. Kd3 {[%emt 0:00:00]} Rd8+
{[%emt 0:03:17]} 47. Kc2 {[%emt 0:00:00]} axb3+ {[%emt 0:00:19]} 48. axb3 {
[%emt 0:00:00]} Ra8 {[%emt 0:00:36]} 49. Kb2 {[%emt 0:00:00]} Re8 {[%emt 0:00:
17]} 50. Rh2 {[%emt 0:00:00]} Re3 {[%emt 0:00:38]} 51. Rg2 {[%emt 0:00:00]} Kd5
{[%emt 0:01:52]} 52. Kc2 {[%emt 0:00:00]} Ke4 {[%emt 0:00:45]} 53. Rg1 {
[%emt 0:00:00]} Re2+ {[%emt 0:01:12]} 54. Kd1 {[%emt 0:00:00]} Rb2 {[%emt 0:00:
54]} 55. Re1+ {[%emt 0:00:00]} Kd4 {[%emt 0:00:08]} 56. Re7 {[%emt 0:00:00]}
Rxb3 {[%emt 0:00:25]} 0-1

[Event "23rd ETCC Women 2021"]
[Site "Catez"]
[Date "2021.11.21"]
[Round "9.60"]
[White "Rodsmoen, Maud"]
[Black "Barbier, Astrid"]
[Result "1-0"]
[ECO "C87"]
[WhiteElo "1953"]
[BlackElo "1915"]
[Annotator "NA"]
[PlyCount "95"]
[EventDate "2021.11.08"]
[EventType "team-tourn"]
[EventCountry "SLO"]
[SourceTitle "playchess.com"]
[Source "ChessBase"]
[SourceQuality "1"]
[WhiteTeam "Norway"]
[BlackTeam "Belgium"]
[WhiteTeamCountry "NOR"]
[BlackTeamCountry "BEL"]
[TimeControl "40/5400+30:1800+30"]

1. e4 {[%emt 0:00:02]} e5 {[%emt 0:00:07]} 2. Nf3 {[%emt 0:00:05]} Nc6 {
[%emt 0:00:07]} 3. Bb5 {[%emt 0:00:09]} Nf6 {[%emt 0:01:11]} 4. O-O {[%emt 0:
00:21]} a6 {[%emt 0:00:13]} 5. Ba4 {[%emt 0:00:09]} Be7 {[%emt 0:00:45]} 6. Re1
{[%emt 0:00:37]} d6 {[%emt 0:00:30]} 7. c3 {[%emt 0:01:49]} b5 {[%emt 0:03:44]}
8. Bc2 {[%emt 0:01:02]} O-O {[%emt 0:00:35]} 9. a4 {[%emt 0:04:46]} Bd7 {
[%emt 0:07:38]} 10. d3 {[%emt 0:04:56]} Na5 {[%emt 0:12:58]} 11. b4 {[%emt 0:
13:20]} Nb7 {[%emt 0:07:00]} 12. d4 {[%emt 0:03:51]} exd4 {[%emt 0:01:55]} 13.
cxd4 {[%emt 0:03:05]} a5 {[%emt 0:08:22]} 14. e5 {[%emt 0:12:01]} Ne8 {[%emt 0:
05:44]} 15. Be4 {[%emt 0:23:37]} c6 {[%emt 0:06:32]} 16. axb5 {[%emt 0:01:41]}
d5 {[%emt 0:02:49]} 17. bxc6 {[%emt 0:01:44]} dxe4 {[%emt 0:07:16]} 18. cxd7 {
[%emt 0:06:34]} exf3 {[%emt 0:02:50]} 19. dxe8=Q {[%emt 0:01:45]} Rxe8 {
[%emt 0:00:15]} 20. bxa5 {[%emt 0:06:49]} Nxa5 {[%emt 0:03:44]} 21. Bd2 {
[%emt 0:04:15]} fxg2 {[%emt 0:12:00]} 22. Qa4 {[%emt 0:02:41]} Nc4 {[%emt 0:01:
20]} 23. Qxa8 {[%emt 0:00:28]} Qxa8 {[%emt 0:00:04]} 24. Rxa8 {[%emt 0:00:03]}
Rxa8 {[%emt 0:00:04]} 25. Bc3 {[%emt 0:00:40]} Kf8 {[%emt 0:01:29]} 26. Kxg2 {
[%emt 0:01:47]} Ra2 {[%emt 0:00:54]} 27. Kf3 {[%emt 0:00:18]} Ke8 {[%emt 0:02:
45]} 28. d5 {[%emt 0:02:47]} Rc2 {[%emt 0:01:40]} 29. Re4 {[%emt 0:01:44]} Nb6
{[%emt 0:01:53]} 30. d6 {[%emt 0:00:42]} Bd8 {[%emt 0:00:09]} 31. Re2 {[%emt 0:
00:45]} Rc1 {[%emt 0:00:43]} 32. Rb2 {[%emt 0:00:24]} Nd5 {[%emt 0:01:55]} 33.
Bd4 {[%emt 0:00:28]} Bg5 {[%emt 0:02:13]} 34. Ke4 {[%emt 0:00:46]} Nf4 {
[%emt 0:00:20]} 35. Be3 {[%emt 0:00:54]} Rc4+ {[%emt 0:00:12]} 36. Kf3 {
[%emt 0:00:21]} Ne6 {[%emt 0:03:26]} 37. Nd2 {[%emt 0:00:31]} Rc8 {[%emt 0:00:
32]} 38. Rb7 {[%emt 0:00:29]} Rc3 {[%emt 0:01:41]} 39. Ne4 {[%emt 0:00:30]} Ra3
{[%emt 0:00:21]} 40. Nxg5 {[%emt 0:00:42]} Nxg5+ {[%emt 0:00:15]} 41. Kf4 {
[%emt 0:09:25]} Ne6+ {[%emt 0:03:12]} 42. Ke4 {[%emt 0:00:52]} Ra8 {[%emt 0:03:
35]} 43. Bb6 {[%emt 0:06:59]} h6 {[%emt 0:04:20]} 44. Kd5 {[%emt 0:03:52]} Nd8
{[%emt 0:02:34]} 45. d7+ {[%emt 0:04:10]} Kf8 {[%emt 0:00:35]} 46. Bxd8 {
[%emt 0:00:09]} Rxd8 {[%emt 0:00:23]} 47. Kd6 {[%emt 0:00:08]} f6 {[%emt 0:01:
28]} 48. e6 {[%emt 0:00:10]} 1-0